[Event "FIDE World School-ch O-11 2025"]
[Site "Vrnjacka Banja"]
[Date "2025.03.24"]
[Round "5.1"]
[White "Ivanovic, Leonid"]
[Black "Uzdemir, Ali Poyraz"]
[Result "1-0"]
[Annotator "TA"]
[ECO "B57"]
[WhiteElo "2015"]
[BlackElo "2184"]
[PlyCount "93"]
[EventDate "2025.03.19"]
[EventType "swiss"]
[EventCountry "SRB"]
[SourceTitle "playchess.com"]
[Source "ChessBase"]
[SourceQuality "1"]
[TimeControl "5400+30"]

{[%evp 13,93,20,41,33,35,10,13,-9,0,0,0,0,2,0,2,-10,41,40,58,48,179,135,138,107,175,176,331,328,307,183,179,175,153,145,279,291,290,240,238,219,402,400,402,391,416,397,528,539,538,514,635,625,723,699,672,648,775,605,601,507,494,490,637,655,606,597,1172,1156,1096,1096,1067,1067,29987,29988,29978,29977,29978,6385,29989,29990,29990,856]} 1. e4 {[%emt 0:00:05]} c5 {[%emt 0:00:12]} 2. Nf3 {[%emt 0:00:07]} d6 {[%emt 0:00:02]} 3. d4 {[%emt 0:01:01]} cxd4 {[%emt 0:00:06]} 4. Nxd4 {[%emt 0:00:11]} Nf6 {[%emt 0:00:04]} 5. Nc3 {[%emt 0:00:14]} Nc6 {[%emt 0:00:02]} 6. Bc4 {[%emt 0:00:21]} Qb6 {[%emt 0:00:06]} 7. Nb3 {[%emt 0:00:58]} a6 {[%emt 0:02:50]} 8. Be3 {[%emt 0:08:36] B57: Classical Sicilian: Sozin with 6...Qb6.} Qc7 {[%emt 0:00:18]} 9. Be2 {[%emt 0:00:57]} e6 {[%emt 0:04:48] Wards off Nd5} 10. g4 {[%emt 0:07:41][%cal Bg2g4,Bg4g5][%mdl 32] The position is equal.} b5 {[%emt 0:08:55]} 11. a3 {[%emt 0:04:19][%cal Ba2a3,Ba3b4][%mdl 32]} Bb7 {[%emt 0:02:53]} 12. g5 {[%emt 0:04:28]} Nd7 {[%emt 0:00:13]} 13. f4 {[%emt 0:02:10]} Nc5 $146 {[%emt 0:10:56]} (13... Na5 14. Nxa5 Qxa5 15. Qd4 Rc8 16. O-O e5 17. Qd2 Be7 18. Bg4 Qc7 19. fxe5 Nxe5 20. Bxc8 Qxc8 {0-1 Ehlvest,J (2521)-Adhiban,B (2689) PRO League Stage rapid 2019 (1)}) 14. Bf3 {[%emt 0:03:29]} b4 {[%emt 0:04:25]} ({Black should try} 14... g6 $11) 15. axb4 $1 $14 {[%emt 0:03:40]} Nxb3 {[%emt 0:13:56]} 16. cxb3 {[%emt 0:00:23]} d5 {[%emt 0:05:34]} (16... Be7 $14) 17. exd5 $18 {[%emt 0:09:05]} Nxb4 {[%emt 0:00:47] [#]} 18. Rc1 $1 {[%emt 0:03:08]} Qd7 {[%emt 0:06:39] [#] Dodges Nb5} (18... Rc8 $16) 19. O-O $1 {[%emt 0:07:59]} Rd8 $2 {[%emt 0:15:52]} (19... Rc8 20. dxe6 Qxd1 21. Bxd1 (21. Rcxd1 Bxf3 22. exf7+ Kxf7 $18) 21... fxe6) 20. Bb6 {[%emt 0:06:09]} Rb8 {[%emt 0:02:51]} 21. dxe6 {[%emt 0:04:02]} (21. Qd4 $142) 21... Qxd1 {[%emt 0:01:08]} 22. exf7+ {[%emt 0:00:10]} Kxf7 {[%emt 0:00:03]} 23. Bxd1 {[%emt 0:00:26][%cal Bf3d1,Bd1e2,Be2h5,Bh5f7][%mdl 32]} Bd6 {[%emt 0:04:52]} (23... Bc6 $16) 24. Be2 {[%emt 0:02:47]} Bc8 {[%emt 0:04:11]} 25. Bd4 {[%emt 0:03:28]} Bf5 {[%emt 0:01:12] Repels Ne4} 26. Bh5+ {[%emt 0:07:19]} Ke6 $2 {[%emt 0:04:08]} (26... Bg6 {was called for.}) 27. Rfe1+ {[%emt 0:06:45]} Kd7 {[%emt 0:00:07]} 28. Rcd1 {[%emt 0:00:20] Prevents Nd3.} (28. Bxg7 Nd3 29. Bxh8 Rxh8 $16) 28... Nd3 {[%emt 0:07:20]} 29. Re3 {[%emt 0:00:57]} Nxb2 {[%emt 0:00:00]} 30. Rd2 {[%emt 0:00:59]} Rxb3 {[%emt 0:00:00][%cal Bb8b3,Bb3a3,Ba3a1][%mdl 32]} 31. Bf7 {[%emt 0:00:24] Prevents Nc4.} Ra3 {[%emt 0:00:00]} 32. Be5 {[%emt 0:06:37]} Nd3 {[%emt 0:00:14]} 33. Rexd3 {[%emt 0:01:37]} Bxd3 {[%emt 0:00:06]} 34. Rxd3 {[%emt 0:00:07]} Ra1+ {[%emt 0:00:48]} 35. Kg2 {[%emt 0:00:14]} Ke7 {[%emt 0:00:54] and ...Bxe5 would now be decisive} 36. Nd5+ {[%emt 0:00:21]} Kxf7 {[%emt 0:00:04]} 37. Bxa1 {[%emt 0:00:06]} Rb8 {[%emt 0:00:06]} 38. Kf3 {[%emt 0:02:27]} a5 {[%emt 0:00:18][%cal Ba6a5,Ba5a4][%mdl 32]} 39. Be5 {[%emt 0:01:27]} Bxe5 {[%emt 0:00:05]} 40. fxe5 {[%emt 0:00:01][%mdl 4096] Endgame and Nc7 would now be decisive. KRN-KR} a4 {[%emt 0:00:07]} 41. Ke4 {[%emt 0:01:20]} Rb2 {[%emt 0:00:16]} 42. Nf4 {[%emt 0:00:39]} Rxh2 {[%emt 0:00:52]} 43. Rd7+ {[%emt 0:00:07]} Kf8 {[%emt 0:01:19]} 44. Kf5 {[%emt 0:00:37]} Rb2 {[%emt 0:00:23]} 45. Ra7 {[%emt 0:00:21][%cal Og5g6] Intending g6! and mate.} Rb4 {[%emt 0:00:18]} 46. Ra8+ {[%emt 0:00:12]} Kf7 {[%emt 0:00:05]} 47. e6+ {[%emt 0:00:04] Weighted Error Value: White=0.18 (very precise) /Black=0.73  Mistake:       	White=1     	Black=6      Inaccurate:     	---       	Black=1      OK:         	White=11    	Black=11     Best:        	---       	Black=1      Strong:       	White=3     	---} (47. g6+ $142 hxg6+ 48. Nxg6 Rf4+ 49. Nxf4 Ke7 50. Ra7+ (50. Rxa4 g6+ 51. Nxg6+ Kd8 52. e6 Kc8 53. e7 Kc7 54. e8=Q Kb6 55. Qb8+ Kc5 56. Ke6 Kc6 57. Rc4#) 50... Kd8 51. e6 (51. Rxa4 g6+ 52. Kxg6 Kc7 53. e6 Kd6 54. e7 Kd7 55. Kf6 Kd6 56. e8=Q Kc7 57. Ne6+ Kb6 58. Rb4+ Ka7 59. Qa4#) 51... Kc8 52. e7 (52. Rxa4 Kc7 53. e7 Kd7 54. Ng6 Kd6 55. e8=Q Kc5 56. Qb8 Kc6 57. Ne7+ Kd7 58. Ra7#) 52... Kb8 53. Rd7 (53. e8=Q+ Kxa7 54. Nd5 Kb7 55. Qd7+ Ka6 56. Qc6+ Ka7 57. Qc7+ Ka8 58. Nb6#) 53... g6+ 54. Ke6 g5 55. e8=Q#) 1-0

[Event "FIDE World School-ch O-11 2025"]
[Site "Vrnjacka Banja"]
[Date "2025.03.24"]
[Round "5.2"]
[White "Zhauynbay, Alimzhan"]
[Black "Larion, Iustin"]
[Result "1/2-1/2"]
[Annotator "NA RC"]
[ECO "B12"]
[WhiteElo "1927"]
[BlackElo "1919"]
[PlyCount "51"]
[EventDate "2025.03.19"]
[EventType "swiss"]
[EventCountry "SRB"]
[SourceTitle "playchess.com"]
[Source "ChessBase"]
[SourceQuality "1"]
[TimeControl "5400+30"]

1. e4 {[%emt 0:00:05]} c6 {[%emt 0:00:06]} 2. d4 {[%emt 0:00:04]} d5 {[%emt 0:00:05]} 3. e5 {[%emt 0:00:06]} c5 {[%emt 0:00:05]} 4. dxc5 {[%emt 0:00:04]} e6 {[%emt 0:00:07]} 5. a3 {[%emt 0:00:07]} Bxc5 {[%emt 0:00:07]} 6. b4 {[%emt 0:00:05]} Be7 {[%emt 0:00:08]} 7. Nf3 {[%emt 0:00:12]} a5 {[%emt 0:00:08]} 8. b5 {[%emt 0:00:09]} Nd7 {[%emt 0:00:08]} 9. c4 {[%emt 0:00:56]} dxc4 {[%emt 0:01:04]} 10. Nbd2 {[%emt 0:00:53]} Nb6 {[%emt 0:17:13]} 11. Bxc4 {[%emt 0:01:17]} Nh6 {[%emt 0:07:38]} 12. O-O {[%emt 0:08:25]} Nf5 {[%emt 0:04:25]} 13. Bb2 {[%emt 0:07:08]} O-O {[%emt 0:02:31]} 14. a4 {[%emt 0:05:53]} Bd7 {[%emt 0:04:23]} 15. Bb3 {[%emt 0:04:01]} Bb4 {[%emt 0:05:30]} 16. Ne4 {[%emt 0:09:34]} Rc8 {[%emt 0:14:17]} 17. Rc1 {[%emt 0:10:37]} Rxc1 {[%emt 0:03:31]} 18. Qxc1 {[%emt 0:03:56]} Nd5 {[%emt 0:13:17]} 19. Bxd5 {[%emt 0:05:15]} exd5 {[%emt 0:00:05]} 20. Nc5 {[%emt 0:05:30]} Bc8 {[%emt 0:02:50]} 21. Rd1 {[%emt 0:04:13]} Qc7 {[%emt 0:04:53]} 22. Nd3 {[%emt 0:03:10]} Qc4 {[%emt 0:01:48]} 23. Nxb4 {[%emt 0:05:00]} axb4 {[%emt 0:00:07]} 24. Qd2 {[%emt 0:05:44]} Be6 {[%emt 0:00:49]} 25. Rc1 {[%emt 0:01:57]} Qb3 {[%emt 0:01:09]} 26. Qc2 {[%emt 0:04:46]} 1/2-1/2

[Event "FIDE World School-ch O-11 2025"]
[Site "Vrnjacka Banja"]
[Date "2025.03.24"]
[Round "5.3"]
[White "Lishoy Gengis Paratazham, Dildarav"]
[Black "Kiringoda, Thehas Rithmitha"]
[Result "1/2-1/2"]
[Annotator "NA RC"]
[ECO "B12"]
[WhiteElo "2071"]
[BlackElo "1868"]
[PlyCount "63"]
[EventDate "2025.03.19"]
[EventType "swiss"]
[EventCountry "SRB"]
[SourceTitle "playchess.com"]
[Source "ChessBase"]
[SourceQuality "1"]
[TimeControl "5400+30"]

1. e4 {[%emt 0:00:03]} c6 {[%emt 0:00:09]} 2. d4 {[%emt 0:00:06]} d5 {[%emt 0:00:05]} 3. e5 {[%emt 0:00:05]} Bf5 {[%emt 0:00:12]} 4. Nf3 {[%emt 0:00:11]} e6 {[%emt 0:00:15]} 5. Be2 {[%emt 0:00:20]} Nd7 {[%emt 0:00:17]} 6. O-O {[%emt 0:06:01]} Ne7 {[%emt 0:01:28]} 7. c3 {[%emt 0:07:19]} c5 {[%emt 0:02:35]} 8. dxc5 {[%emt 0:03:24]} Nc6 {[%emt 0:07:57]} 9. Nd4 {[%emt 0:04:27]} Bxb1 {[%emt 0:02:08]} 10. Rxb1 {[%emt 0:00:42]} Bxc5 {[%emt 0:00:47]} 11. f4 {[%emt 0:08:41]} O-O {[%emt 0:07:03]} 12. Kh1 {[%emt 0:04:01]} Qe7 {[%emt 0:03:06]} 13. a3 {[%emt 0:08:51]} Rad8 {[%emt 0:13:01]} 14. Bg4 {[%emt 0:04:49]} Bb6 {[%emt 0:02:47]} 15. b4 {[%emt 0:09:23]} Rfe8 {[%emt 0:15:11]} 16. Qd3 {[%emt 0:08:25]} Nf8 {[%emt 0:09:14]} 17. Nb5 {[%emt 0:08:31]} Ng6 {[%emt 0:04:19]} 18. Bh5 {[%emt 0:02:17]} Rf8 {[%emt 0:03:56]} 19. Bxg6 {[%emt 0:01:14]} hxg6 {[%emt 0:00:21]} 20. Bd2 {[%emt 0:04:42]} a6 {[%emt 0:02:53]} 21. Nd4 {[%emt 0:04:03]} Rc8 {[%emt 0:00:29]} 22. b5 {[%emt 0:01:02]} Nxd4 {[%emt 0:00:36]} 23. cxd4 {[%emt 0:02:19]} a5 {[%emt 0:00:38]} 24. Rbc1 {[%emt 0:00:35]} Qd7 {[%emt 0:00:44]} 25. a4 {[%emt 0:00:45]} Rc4 {[%emt 0:05:23]} 26. Rxc4 {[%emt 0:00:36]} dxc4 {[%emt 0:00:05]} 27. Qxc4 {[%emt 0:00:16]} Rc8 {[%emt 0:00:04]} 28. Qd3 {[%emt 0:01:09]} Qxd4 {[%emt 0:00:08]} 29. Qxd4 {[%emt 0:00:26]} Bxd4 {[%emt 0:00:05]} 30. Bxa5 {[%emt 0:02:09]} Rc4 {[%emt 0:00:09]} 31. Rb1 {[%emt 0:01:11]} Rxa4 {[%emt 0:03:59]} 32. Bc7 1/2-1/2

[Event "FIDE World School-ch O-11 2025"]
[Site "Vrnjacka Banja"]
[Date "2025.03.24"]
[Round "5.4"]
[White "Adamovic, Nikola"]
[Black "Zabelin, Platon"]
[Result "0-1"]
[Annotator "NA RC"]
[ECO "B12"]
[WhiteElo "1996"]
[BlackElo "1831"]
[PlyCount "146"]
[EventDate "2025.03.19"]
[EventType "swiss"]
[EventCountry "SRB"]
[SourceTitle "playchess.com"]
[Source "ChessBase"]
[SourceQuality "1"]
[TimeControl "5400+30"]

1. e4 {[%emt 1:31:00]} c6 {[%emt 0:01:51]} 2. d4 {[%emt 0:00:00]} d5 {[%emt 0:00:12]} 3. e5 {[%emt 0:00:00]} Bf5 {[%emt 0:00:05]} 4. h4 {[%emt 0:00:00]} h5 {[%emt 0:00:07]} 5. c4 {[%emt 0:00:00]} e6 {[%emt 0:00:10]} 6. Nc3 {[%emt 0:00:00]} Ne7 {[%emt 0:00:47]} 7. Nge2 {[%emt 0:00:00]} Nd7 {[%emt 0:04:07]} 8. cxd5 {[%emt 0:00:00]} cxd5 {[%emt 0:12:10]} 9. Ng3 {[%emt 0:00:00]} Bg6 {[%emt 0:00:30]} 10. Bd3 {[%emt 0:00:00]} Bxd3 {[%emt 0:02:44]} 11. Qxd3 {[%emt 0:00:00]} Nc6 {[%emt 0:02:23]} 12. Bg5 {[%emt 0:00:00]} Be7 {[%emt 0:11:42]} 13. f4 {[%emt 0:00:00]} Bxg5 {[%emt 0:08:14]} 14. hxg5 {[%emt 0:00:00]} g6 {[%emt 0:11:01]} 15. Nb5 {[%emt 0:00:00]} Qa5+ {[%emt 0:10:07]} 16. Kf2 {[%emt 0:00:00]} Qb6 {[%emt 0:05:58]} 17. Nd6+ {[%emt 0:00:00]} Ke7 {[%emt 0:02:10]} 18. Ne2 {[%emt 0:00:00]} Ncxe5 {[%emt 0:02:04]} 19. Nf5+ {[%emt 0:00:00]} gxf5 {[%emt 0:01:39]} 20. fxe5 {[%emt 0:00:00]} Nxe5 {[%emt 0:01:15]} 21. Qa3+ {[%emt 0:00:00]} Kd7 {[%emt 0:01:22]} 22. Qa4+ {[%emt 0:00:00]} Qc6 {[%emt 0:02:43]} 23. Qb3 {[%emt 0:00:00]} Ng4+ {[%emt 0:00:30]} 24. Kf3 {[%emt 0:00:00]} Qb6 {[%emt 0:07:48]} 25. Qa4+ {[%emt 0:00:00]} Ke7 {[%emt 0:00:38]} 26. Qa3+ {[%emt 0:00:00]} Qd6 {[%emt 0:00:23]} 27. Qb3 {[%emt 0:00:00]} b6 {[%emt 0:02:00]} 28. Nf4 {[%emt 0:00:00]} Rac8 {[%emt 0:02:51]} 29. g6 {[%emt 0:00:00]} Nf6 {[%emt 0:02:49]} 30. Qa4 {[%emt 0:08:53]} a5 {[%emt 0:03:10]} 31. Rac1 {[%emt 0:01:04]} Qb4 {[%emt 0:01:33]} 32. Qxb4+ {[%emt 0:00:46]} axb4 {[%emt 0:00:01]} 33. g7 {[%emt 0:00:16]} Rhg8 {[%emt 0:00:07]} 34. Rxc8 {[%emt 0:01:44]} Rxc8 {[%emt 0:00:01]} 35. Nxh5 {[%emt 0:00:01]} Nxh5 {[%emt 0:01:05]} 36. Rxh5 {[%emt 0:00:01]} Rg8 {[%emt 0:00:01]} 37. Rh8 {[%emt 0:00:27]} Rxg7 {[%emt 0:00:01]} 38. Rb8 {[%emt 0:00:01]} Rg4 {[%emt 0:00:27]} 39. Rxb6 {[%emt 0:01:22]} Rxd4 {[%emt 0:00:02]} 40. Ke3 {[%emt 0:00:14]} Re4+ {[%emt 0:00:27]} 41. Kd3 {[%emt 0:00:01]} Rg4 {[%emt 0:00:31]} 42. Ke3 {[%emt 0:00:27]} Kf6 {[%emt 0:00:08]} 43. Rb7 {[%emt 0:00:51]} Ke5 {[%emt 0:00:10]} 44. Rb6 {[%emt 0:00:21]} Re4+ {[%emt 0:00:12]} 45. Kf3 {[%emt 0:00:10]} Rc4 {[%emt 0:00:31]} 46. Ke3 {[%emt 0:00:56]} f4+ {[%emt 0:01:11]} 47. Kf3 {[%emt 0:00:26]} Kf5 {[%emt 0:01:15]} 48. Rb5 {[%emt 0:00:36]} f6 {[%emt 0:00:17]} 49. g3 {[%emt 0:01:42]} fxg3 {[%emt 0:00:09]} 50. Kxg3 {[%emt 0:00:00]} Rd4 {[%emt 0:00:27]} 51. Kf3 {[%emt 0:00:07]} Ke5 {[%emt 0:00:19]} 52. Rb8 {[%emt 0:01:07]} Rh4 {[%emt 0:01:18]} 53. Kg3 {[%emt 0:00:30]} Re4 {[%emt 0:00:24]} 54. Kf3 {[%emt 0:00:55]} Rc4 {[%emt 0:00:27]} 55. Rb6 {[%emt 0:02:00]} Kf5 {[%emt 0:00:15]} 56. Rb5 {[%emt 0:00:20]} e5 {[%emt 0:00:36]} 57. Ke3 {[%emt 0:00:51]} Rd4 {[%emt 0:00:32]} 58. Rb6 {[%emt 0:01:15]} Rh4 {[%emt 0:00:29]} 59. Kf3 {[%emt 0:00:18]} b3 {[%emt 0:01:49]} 60. axb3 {[%emt 0:00:19]} Rh2 {[%emt 0:00:09]} 61. Ke3 {[%emt 0:00:43]} Rxb2 {[%emt 0:00:11]} 62. b4 {[%emt 0:00:06]} Rb3+ {[%emt 0:00:04]} 63. Kd2 {[%emt 0:00:08]} d4 {[%emt 0:01:01]} 64. Kc2 {[%emt 0:00:23]} Rc3+ {[%emt 0:00:06]} 65. Kd2 {[%emt 0:00:01]} Rh3 {[%emt 0:00:07]} 66. Ra6 {[%emt 0:00:48]} Ke4 {[%emt 0:01:20]} 67. Rxf6 {[%emt 0:00:41]} Rh2+ {[%emt 0:00:04]} 68. Kc1 {[%emt 0:00:50]} Ke3 {[%emt 0:00:15]} 69. Ra6 {[%emt 0:01:47]} d3 {[%emt 0:00:14]} 70. b5 {[%emt 0:00:29]} Rh1+ {[%emt 0:00:09]} 71. Kb2 {[%emt 0:00:00]} d2 {[%emt 0:00:13]} 72. Rd6 {[%emt 0:00:04]} d1=Q {[%emt 0:00:07]} 73. Rxd1 {[%emt 0:00:29]} Rxd1 {[%emt 0:00:02]} 0-1

[Event "FIDE World School-ch O-11 2025"]
[Site "Vrnjacka Banja"]
[Date "2025.03.24"]
[Round "5.5"]
[White "Tulegen, Ramazan"]
[Black "Colovic, Vuk"]
[Result "1-0"]
[Annotator "NA RC"]
[ECO "B81"]
[WhiteElo "1973"]
[BlackElo "1738"]
[PlyCount "53"]
[EventDate "2025.03.19"]
[EventType "swiss"]
[EventCountry "SRB"]
[SourceTitle "playchess.com"]
[Source "ChessBase"]
[SourceQuality "1"]
[TimeControl "5400+30"]

1. e4 {[%emt 0:00:07]} c5 {[%emt 0:00:06]} 2. Nf3 {[%emt 0:00:14]} e6 {[%emt 0:00:13]} 3. d4 {[%emt 0:00:08]} cxd4 {[%emt 0:00:06]} 4. Nxd4 {[%emt 0:00:05]} Nc6 {[%emt 0:00:04]} 5. Nc3 {[%emt 0:00:15]} d6 {[%emt 0:00:18]} 6. g4 {[%emt 0:00:07]} Be7 {[%emt 0:10:13]} 7. Be3 {[%emt 0:02:24]} a6 {[%emt 0:08:33]} 8. Rg1 {[%emt 0:07:01]} Nf6 {[%emt 0:09:42]} 9. g5 {[%emt 0:01:34]} Nd7 {[%emt 0:01:24]} 10. Qd2 {[%emt 0:04:30]} Nde5 {[%emt 0:06:10]} 11. Be2 {[%emt 0:06:25]} Nxd4 {[%emt 0:08:58]} 12. Bxd4 {[%emt 0:01:37]} O-O {[%emt 0:03:41]} 13. f4 {[%emt 0:06:12]} Nc6 {[%emt 0:01:42]} 14. Be3 {[%emt 0:01:52]} b5 {[%emt 0:03:54]} 15. Bf3 {[%emt 0:06:01]} Bb7 {[%emt 0:02:28]} 16. O-O-O {[%emt 0:05:54]} Rc8 {[%emt 0:11:37]} 17. Kb1 {[%emt 0:08:20]} Qa5 {[%emt 0:04:26]} 18. Bh1 {[%emt 0:23:35]} Rc7 {[%emt 0:16:36]} 19. Qf2 {[%emt 0:05:21]} Qb4 {[%emt 0:06:10]} 20. Bb6 {[%emt 0:07:01]} Na5 {[%emt 0:03:37]} 21. a3 {[%emt 0:00:16]} Qc4 {[%emt 0:00:24]} 22. Bxa5 {[%emt 0:00:19]} Rcc8 {[%emt 0:00:13]} 23. Qd4 {[%emt 0:04:17]} Qc6 {[%emt 0:00:10]} 24. f5 {[%emt 0:00:26]} e5 {[%emt 0:01:10]} 25. Qd3 {[%emt 0:00:13]} g6 {[%emt 0:00:33]} 26. Nd5 {[%emt 0:00:15]} Bd8 {[%emt 0:00:10]} 27. Bxd8 {[%emt 0:00:07]} 1-0

[Event "FIDE World School-ch O-11 2025"]
[Site "Vrnjacka Banja"]
[Date "2025.03.24"]
[Round "5.6"]
[White "Patlolla Indra Reddy"]
[Black "Jumanazarov, Ibrohim"]
[Result "0-1"]
[Annotator "NA RC"]
[ECO "B13"]
[WhiteElo "1547"]
[BlackElo "1869"]
[PlyCount "110"]
[EventDate "2025.03.19"]
[EventType "swiss"]
[EventCountry "SRB"]
[SourceTitle "playchess.com"]
[Source "ChessBase"]
[SourceQuality "1"]
[TimeControl "5400+30"]

1. e4 {[%emt 0:00:58]} c6 {[%emt 0:00:38]} 2. d4 {[%emt 0:01:22]} d5 {[%emt 0:00:48]} 3. exd5 {[%emt 0:00:38]} cxd5 {[%emt 0:00:14]} 4. Bd3 {[%emt 0:00:12]} Nc6 {[%emt 0:00:17]} 5. c3 {[%emt 0:01:22]} Nf6 {[%emt 0:00:32]} 6. Bf4 {[%emt 0:02:04]} g6 {[%emt 0:07:01]} 7. Nf3 {[%emt 0:05:55]} Bg7 {[%emt 0:01:25]} 8. O-O {[%emt 0:05:32]} O-O {[%emt 0:02:54]} 9. Nbd2 {[%emt 0:02:04]} Bd7 {[%emt 0:12:54]} 10. Nb3 {[%emt 0:12:20]} Nh5 {[%emt 0:05:48]} 11. Be3 {[%emt 0:00:55]} b6 {[%emt 0:06:49]} 12. Qd2 {[%emt 0:02:49]} Bg4 {[%emt 0:06:13]} 13. Be2 {[%emt 0:12:53]} Nf6 {[%emt 0:06:23]} 14. Rfd1 {[%emt 0:08:03]} Ne4 {[%emt 0:03:55]} 15. Qc2 {[%emt 0:02:36]} Rc8 {[%emt 0:06:05]} 16. Bf4 {[%emt 0:06:37]} f6 {[%emt 0:10:48]} 17. Nbd2 {[%emt 0:07:31]} Bf5 {[%emt 0:07:56]} 18. Qa4 {[%emt 0:05:01]} e5 {[%emt 0:02:25]} 19. dxe5 {[%emt 0:02:49]} Nc5 {[%emt 0:02:29]} 20. Qa3 {[%emt 0:01:26]} fxe5 {[%emt 0:00:43]} 21. Bg5 {[%emt 0:00:27]} Qc7 {[%emt 0:04:12]} 22. Nf1 {[%emt 0:02:19]} Be6 {[%emt 0:02:25]} 23. Ne3 {[%emt 0:02:17]} Qf7 {[%emt 0:01:57]} 24. Rac1 {[%emt 0:02:30]} e4 {[%emt 0:01:38]} 25. Nd4 {[%emt 0:03:28]} Nxd4 {[%emt 0:02:37]} 26. cxd4 {[%emt 0:00:09]} Qxf2+ {[%emt 0:00:09]} 27. Kh1 {[%emt 0:00:06]} Qxe2 {[%emt 0:00:44]} 28. dxc5 {[%emt 0:00:07]} Bxb2 {[%emt 0:01:00]} 29. Qxa7 {[%emt 0:00:47]} Bxc1 {[%emt 0:00:33]} 30. Rxc1 {[%emt 0:00:17]} Rxc5 {[%emt 0:01:13]} 31. Rg1 {[%emt 0:00:41]} Qb5 {[%emt 0:02:41]} 32. Bh6 {[%emt 0:00:51]} Rf7 {[%emt 0:00:24]} 33. Qb8+ {[%emt 0:00:32]} Rc8 {[%emt 0:00:03]} 34. Qe5 {[%emt 0:00:05]} Qd7 {[%emt 0:00:14]} 35. h3 {[%emt 0:01:03]} d4 {[%emt 0:00:31]} 36. Rd1 {[%emt 0:00:27]} d3 {[%emt 0:01:10]} 37. Qxe4 {[%emt 0:00:12]} d2 {[%emt 0:00:07]} 38. Rxd2 {[%emt 0:02:22]} Qxd2 {[%emt 0:00:16]} 39. Qxe6 {[%emt 0:00:06]} Qd7 {[%emt 0:00:37]} 40. Qb3 {[%emt 0:01:16]} Qd6 {[%emt 0:00:56]} 41. Qb2 {[%emt 0:01:49]} Qc5 {[%emt 0:00:42]} 42. Ng4 {[%emt 0:00:11]} Rf1+ {[%emt 0:00:27]} 43. Kh2 {[%emt 0:00:13]} Qc7+ {[%emt 0:00:06]} 44. Qe5 {[%emt 0:01:32]} Rf5 {[%emt 0:00:40]} 45. Qxc7 {[%emt 0:00:24]} Rxc7 {[%emt 0:00:05]} 46. Ne3 {[%emt 0:00:02]} Ra5 {[%emt 0:00:33]} 47. Bf4 {[%emt 0:06:40]} Rf7 {[%emt 0:00:22]} 48. Kg3 {[%emt 0:00:00]} Rxa2 {[%emt 0:00:34]} 49. Nc4 {[%emt 0:00:00]} Rxf4 {[%emt 0:00:09]} 50. Nxb6 {[%emt 0:00:00]} Rff2 {[%emt 0:00:08]} 51. Kh4 {[%emt 0:00:00]} Rxg2 {[%emt 0:00:36]} 52. Nc4 {[%emt 0:00:00]} g5+ {[%emt 0:00:43]} 53. Kh5 {[%emt 0:00:00]} Ra4 {[%emt 0:00:02]} 54. h4 {[%emt 0:00:00]} Rxc4 {[%emt 0:00:05]} 55. hxg5 {[%emt 0:00:00]} Rh2# {[%emt 0:00:05]} 0-1

[Event "FIDE World School-ch O-11 2025"]
[Site "Vrnjacka Banja"]
[Date "2025.03.25"]
[Round "6.1"]
[White "Larion, Iustin"]
[Black "Ivanovic, Leonid"]
[Result "1-0"]
[Annotator "NA RC"]
[ECO "B22"]
[WhiteElo "1919"]
[BlackElo "2015"]
[PlyCount "111"]
[EventDate "2025.03.19"]
[EventType "swiss"]
[EventCountry "SRB"]
[SourceTitle "playchess.com"]
[Source "ChessBase"]
[SourceQuality "1"]
[TimeControl "5400+30"]

1. e4 {[%emt 0:00:11]} c5 {[%emt 0:00:14]} 2. c3 {[%emt 1:31:19]} d5 {[%emt 0:00:22]} 3. exd5 {[%emt 0:00:00]} Qxd5 {[%emt 0:00:20]} 4. Nf3 {[%emt 0:00:00]} Nf6 {[%emt 0:01:29]} 5. d4 {[%emt 0:00:00]} Bg4 {[%emt 0:00:42]} 6. Be2 {[%emt 0:00:00]} e6 {[%emt 0:01:11]} 7. Be3 {[%emt 0:00:00]} cxd4 {[%emt 0:01:22]} 8. cxd4 {[%emt 0:00:00]} Bb4+ {[%emt 0:00:41]} 9. Nc3 {[%emt 0:00:00]} O-O {[%emt 0:01:08]} 10. O-O {[%emt 0:00:00]} Qd6 {[%emt 0:00:12]} 11. a3 {[%emt 0:00:00]} Bxc3 {[%emt 0:00:32]} 12. bxc3 {[%emt 0:00:00]} Nd5 {[%emt 0:00:07]} 13. Qb3 {[%emt 0:00:00]} Nc6 {[%emt 0:04:33]} 14. c4 {[%emt 0:00:00]} Nxe3 {[%emt 0:06:07]} 15. fxe3 {[%emt 0:00:00]} b6 {[%emt 0:00:12]} 16. Rfd1 {[%emt 0:00:00]} e5 {[%emt 0:05:05]} 17. dxe5 {[%emt 0:00:00]} Qe7 {[%emt 0:00:46]} 18. h3 {[%emt 0:00:00]} Bh5 {[%emt 0:01:39]} 19. Qc3 {[%emt 0:00:00]} Rac8 {[%emt 0:09:09]} 20. Rd5 {[%emt 0:00:00]} Bxf3 {[%emt 0:01:30]} 21. gxf3 {[%emt 0:00:00]} Qh4 {[%emt 0:11:46]} 22. Kg2 {[%emt 0:00:00]} f6 {[%emt 0:02:43]} 23. e6 {[%emt 0:00:00]} Rce8 {[%emt 0:08:36]} 24. c5 {[%emt 0:00:00]} Rxe6 {[%emt 0:11:47]} 25. Qc4 {[%emt 0:00:00]} Qxc4 {[%emt 0:06:35]} 26. Bxc4 {[%emt 0:00:00]} Kh8 {[%emt 0:01:13]} 27. Rd6 {[%emt 0:00:00]} Rxd6 {[%emt 0:01:13]} 28. cxd6 {[%emt 0:00:00]} Rd8 {[%emt 0:00:06]} 29. Rd1 {[%emt 0:00:00]} g6 {[%emt 0:01:00]} 30. f4 {[%emt 0:00:00]} f5 {[%emt 0:02:04]} 31. Bb5 {[%emt 0:03:31]} Na5 {[%emt 0:01:09]} 32. Rd5 {[%emt 0:02:50]} Kg7 {[%emt 0:07:13]} 33. d7 {[%emt 0:00:10]} a6 {[%emt 0:00:38]} 34. Bxa6 {[%emt 0:00:55]} Nc6 {[%emt 0:04:05]} 35. Rd6 {[%emt 0:01:48]} Na7 {[%emt 0:00:29]} 36. Rxb6 {[%emt 0:01:12]} Rxd7 {[%emt 0:00:01]} 37. Rb7 {[%emt 0:00:16]} Rxb7 {[%emt 0:00:02]} 38. Bxb7 {[%emt 0:00:08]} Kf6 {[%emt 0:00:07]} 39. a4 {[%emt 0:00:09]} Ke6 {[%emt 0:04:02]} 40. Kf3 {[%emt 0:00:32]} Kd6 {[%emt 0:00:14]} 41. h4 {[%emt 0:00:30]} Ke6 {[%emt 0:02:34]} 42. Ke2 {[%emt 0:00:16]} Kd6 {[%emt 0:00:42]} 43. Kd3 {[%emt 0:00:35]} Kc5 {[%emt 0:00:16]} 44. Kc3 {[%emt 0:00:12]} h6 {[%emt 0:02:32]} 45. Kb3 {[%emt 0:00:07]} Kb6 {[%emt 0:00:51]} 46. Bd5 {[%emt 0:00:35]} Nc8 {[%emt 0:00:25]} 47. Bf7 {[%emt 0:00:05]} Ne7 {[%emt 0:00:02]} 48. Kc4 {[%emt 0:01:19]} h5 {[%emt 0:00:34]} 49. Be8 {[%emt 0:00:19]} g5 {[%emt 0:01:02]} 50. fxg5 {[%emt 0:00:21]} f4 {[%emt 0:00:02]} 51. exf4 {[%emt 0:00:12]} Nf5 {[%emt 0:00:01]} 52. Bxh5 {[%emt 0:00:40]} Nxh4 {[%emt 0:00:02]} 53. Kd5 {[%emt 0:00:30]} Ng2 {[%emt 0:00:09]} 54. Ke5 {[%emt 0:00:08]} Nh4 {[%emt 0:00:05]} 55. g6 {[%emt 0:00:15]} Nxg6+ {[%emt 0:00:08]} 56. Bxg6 {[%emt 0:00:06]} 1-0